{"text_format":"2","workbook":"xlsx","n_sheets":4,"sheets":["NGDA Themes","NGDA Theme Leads","Theme Totals","NGDA Datasets"],"not_rendered":{"charts":0,"images":0,"macros":0,"external_links":0,"defined_names":1,"comments":1,"pivot_tables":0},"unopened":[],"bounds":{"document_bytes":16777216,"sheet_cells":100000,"run_cost":"one","rows_first":2000,"rows_last":500,"rows_between":2000,"halvings":0,"cell_chars":16384,"cell_head_chars":4096},"cells_cut":0,"cells_raw":0,"read":"whole","date_system":"1900"}

{"sheet":"NGDA Themes","index":0,"n_rows":20,"n_cols":3,"rows_kept":20,"cut":false,"hidden":false,"merged":[[19,0,19,1]]}
["2013-02-01","National Geospatial Data Asset (NGDA) Data Themes list with theme descriptions and theme leads agencies.\nEndorsed by the Federal Geographic Data Committee Steering Committee August 19, 2011, Revised February 1, 2013."]
[null,"Themes list contains changes to the themes and their descriptions approved by the Coordination Group through December 2012."]
["NGDA Theme","NGDA Theme Description","Theme Lead Agency(ies)"]
["Biota ","Pertain to, or describes, the dynamic processes, interactions, distributions, and relationships between and among organisms and their environments.                                        ","Dept. of the Interior,\nU.S. Geological Survey"]
["Cadastre","Past, current, and future rights and interests in real property including the spatial information necessary to describe geographic extents.  Rights and interests are benefits or enjoyment in real property that can be conveyed, transferred, or otherwise allocated to another for economic remuneration.  Rights and interests are recorded in land record documents.  The spatial information necessary to describe geographic extents includes surveys and legal description frameworks such as the Public Land Survey System, as well as parcel-by-parcel surveys and descriptions. Does not include Federal government or military facilities.","Dept. of the Interior,\nBureau of Land Management"]
["Climate and Weather","Meteorological conditions, including temperature, precipitation, and wind, that characteristically prevail in a particular region over a long period of time.  Weather is the state of the atmosphere at a given time and place, with respect to variables such as temperature, moisture, wind velocity, and barometric pressure. ","Dept. of Commerce,\nNational Oceanic and Atmospheric Administration"]
["Cultural Resources","Features and characteristics of a collection of places of significance in history, architecture, engineering, or society.  Includes National Monuments and Icons.","Dept. of the Interior,\nNational Park Service"]
["Elevation ","The measured vertical position of the earth surface and other landscape or bathymetric features relative to a reference datum typically related to sea level. These points normally describe bare earth positions but may also describe the top surface of buildings and other objects, vegetation structure, or submerged objects. Elevation data can be stored as a three-dimensional array or as a continuous surface such as a raster, triangulated irregular network, or contours. Elevation data may also be represented in other derivative forms such as slope, aspect, ridge and drainage lines, and shaded relief.","Dept. of the Interior,\nU.S. Geological Survey,\nAND\nDept. of Commerce,\nNational Oceanic and Atmospheric Administration"]
["Geodetic Control ","Survey control points or other related data sets which are accurately tied to the National Spatial Reference System (the official, common federal system for establishing coordinates for geospatial data that are consistent nationwide). Geodetic control examples include: passive geodetic control marks, active geodetic observing systems, data from Global Navigation Satellite Systems (e.g., GPS), gravity measurements, and models of the earth's gravity field (geoid).","Dept. of Commerce,\nNational Oceanic and Atmospheric Administration"]
["Geology","Geographically-referenced data pertaining to the origin, history, composition, structure, features, and processes of the solid Earth, both onshore and offshore.  Includes geologic, geophysical, and geochemical maps, stratigraphy, paleontology, geochronology, mineral and energy resources, and natural hazards such as earthquakes, volcanic eruptions, coastal erosion, and landslides. Does not include soils.","Dept. of the Interior,\nU.S. Geological Survey\nAND\nBureau of Ocean Energy Management"]
["Governmental Units, and Administrative and Statistical  Boundaries","Boundaries that delineate geographic areas for uses such as governance and the general provision of services (e.g., States, American Indian reservations, counties, cities, towns, etc.), administration and/or for a specific purpose (e.g., Congressional Districts, school districts, fire districts, Alaska Native Regional Corporations, etc.), and/or provision of statistical data (census tracts, census blocks, metropolitan and micropolitan statistical areas, etc.). Boundaries for these various types of geographic areas are either defined through a documented legal description or through criteria and guidelines. Other boundaries may include international limits, those of federal land ownership, the extent of administrative regions for various federal agencies, as well as the jurisdictional offshore limits of U.S. sovereignty. Boundaries associated solely with natural resources and/or cultural entities are excluded from this theme and are included in the appropriate subject themes. ","Department of Commerce,\nU.S. Census Bureau"]
["Imagery","Georeferenced images of the Earth's surface, which have been collected via aerial photography or satellite data.   Orthoimagery is prepared through a geometric correction process known as orthorectification to remove image displacements due to relief and sensor characteristics, allowing their use as base maps for digital mapping and analyses in a GIS.  Specific imagery data sets created through image interpretation and classification, such as a land cover image, can be found under themes specific to the subject matter. Includes imagery such as Landsat, National Agriculture Imagery Program (NAIP), Digital Orthophoto Quarter Quadrangles (DOQQs).","Dept. of Agriculture,\nFarm Service Agency\nAND\nDept. of the Interior,\nU.S. Geological Survey"]
["Land Use-Land Cover ","LU/LC is a term referring collectively to natural and man-made surface features that cover the land (Land Cover) and to the primary ways in which land cover is used by humans (Land Use).  Examples of Land Cover may be grass, asphalt, trees, bare ground, water, etc.  Examples of Land Use may be urban, agricultural, ranges, and forest areas.","Dept. of Agriculture,\nU.S. Forest Service\nAND\nDept. of the Interior,\nU.S. Geological Survey"]
["Real Property","The spatial representation (location) of real property entities, typically consisting of one or more of the following: unimproved land, a building, a structure, site improvements and the underlying land. Complex real property entities (that is \"facilities\") are used for a broad spectrum of functions or missions. This theme focuses on spatial representation of real property assets only and does not seek to describe special purpose functions of real property such as those found in the Cultural Resources, Transportation, or Utilities themes.","General Services Administration"]
["Soils ","Depicts the geography and attributes of the many kinds of soils found in the landscape at both large and small map scales. A Living dynamic resource providing a natural medium for plant growth and habitat for living organisms, soil recycles nutrients and wastes, stores carbon, and purifies water supplies. Soil has distinct layers (called ‘horizons’) that, in contrast to underlying geologic material, are altered by the interactions of climate, landscape features, and living organisms over time.  For more information on Soils, see http://soils.usda.gov/","Dept. of Agriculture,\nNatural Resources Conservation Service"]
["Transportation ","Means and aids for conveying persons and/or goods.  The transportation system includes both physical and non-physical components related to all modes of travel that allow the movement of goods and people between locations. ","Dept. of Transportation"]
["Utilities","Means, aids, and usage of facilities for producing, conveying, distributing, processing or disposing of public and private commodities including power, energy, communications, natural gas, and water. Includes sub themes for Energy, Drinking water and Water treatment, and Communications.\n","Offshore Utilities: Dept. of the Interior,\nBureau of Safety and Environmental Enforcement\nAND\nTerrestrial Utilities1: To be determined"]
["Water – Inland ","Interior hydrologic features and characteristics, including classification, measurements, location, and extent.  Includes aquifers, watersheds, wetlands, navigation, water quality, water quantity, and groundwater information. ","Dept. of the Interior,\nU.S. Geological Survey\nAND\nU.S. Fish and Wildlife Service"]
["Water – Oceans and Coasts ","Features and characteristics of salt water bodies (i.e. tides, tidal waves, coastal information, reefs) and features and characteristics that represent the intersection of the land with the water surface (i.e. shorelines), the lines from which the territorial sea and other maritime zones are measured (i.e. baseline maritime) and lands covered by water at any stage of the tide (i.e. Outer Continental Shelf ), as distinguished from tidelands, which are attached to the mainland or an island and cover and uncover with the tide. ","Dept. of Commerce,\nNational Oceanic and Atmospheric Administration"]
["1 BSEE proposed to lead the Offshore portion of the Utilities Theme as it aligns to their mission, they do not manage terrestrial Utilities so a Theme Co-Lead for Terrestrial Utilities needs to be identified."]

{"sheet":"NGDA Theme Leads","index":1,"n_rows":28,"n_cols":12,"rows_kept":28,"cut":false,"hidden":false,"merged":[]}
["2015-05-01"]
["Theme ","Theme Lead","Theme Lead Contact Info","Theme Lead Agency","Theme Lead Sub-Agency","Theme Executive Champion","Executive Champion Agency","Executive Champion Sub-Agency","Executive Champion Title","Theme Executive Champion Contact Info"]
["Biota ","Marcia McNiff","mmcniff@usgs.gov","Department of the Interior","United States Geological Survey (USGS)","Jerry Johnston*","Department of the Interior",null,"Geographic Information Officer","jerry_johnston@ios.doi.gov "]
["Cadastre","Don Buhler ","dbuhler@blm.gov","Department of the Interior","Bureau of Land Management (BLM)","Jerry Johnston*","Department of the Interior",null,"Geographic Information Officer","jerry_johnston@ios.doi.gov "]
["Climate and Weather","Kari Sheets","kari.sheets@noaa.gov","Department of Commerce ","National Oceanic and Atmospheric Administration (NOAA)","Tom R. Karl","Department of Commerce ","National Oceanic and Atmospheric Administration (NOAA)","Director, National Climatic Data Center","thomas.R.Karl@noaa.gov"]
["Cultural Resources","Deidre McCarthy","deidre_mccarthy@nps.gov","Department of the Interior","National Park Service (NPS)","Stephanie Toothman","Department of the Interior","National Park Service (NPS)","Associate Director for Cultural Resources, Partnerships and Science","Stephanie_Toothman@nps.gov"]
["Elevation","Diane Eldridge (Co-Lead)","deldridge@usgs.gov","Department of the Interior","United States Geological Survey (USGS)","Jerry Johnston*","Department of the Interior",null,"Director, National Geospatial Program, Core Science Systems Division","jerry_johnston@ios.doi.gov "]
[null,"Ashley Chappell (Co-Lead)","ashley.chappell@noaa.gov","Department of Commerce ","National Oceanic and Atmospheric Administration (NOAA)","Gerd Glang","Department of Commerce ","National Oceanic and Atmospheric Administration (NOAA)","Director, Office of Coast Survey","gerd.glang@noaa.gov"]
["Geodetic Control","Neil Weston ","Neil.D.Weston@noaa.gov","Department of Commerce ","National Oceanic and Atmospheric Administration (NOAA)","Juliana Blackwell","Department of Commerce ","National Oceanic and Atmospheric Administration (NOAA)","Director, National Geodetic Survey","juliana.blackwell@noaa.gov"]
["Geology","Dave Soller (Co-Lead)","drsoller@usgs.gov","Department of the Interior","United States Geological Survey (USGS)","Jerry Johnston*","Department of the Interior",null,"Geographic Information Officer","jerry_johnston@ios.doi.gov "]
[null,"Kumkum Ray (Co-Lead)","kumkum.ray@boem.gov","Department of the Interior","Bureau of Ocean Energy Management (BOEM)","Jerry Johnston*","Department of the Interior",null,"Bureau of Ocean Energy Management","jerry_johnston@ios.doi.gov "]
["Governmental Units","Lynda Liptrap","lynda.a.liptrap@census.gov","Department of Commerce ","United States Census Bureau (US Census)","Timothy F. Trainor*","Department of Commerce ","United States Census Bureau (US Census)","Chief, Geography Division","timothy.f.trainor@census.gov"]
["Imagery","Bob Pierce (Co-Lead)","rrpierce@usgs.gov","Department of the Interior","United States Geological Survey (USGS)","Jerry Johnston*","Department of the Interior",null,"Geographic Information Officer","jerry_johnston@ios.doi.gov "]
[null,"Shirley Hall (Co-Lead)","shirley.hall@wdc.usda.gov","Department of Agriculture","Farm Service Agency (FSA)","Stephen Lowe*","Department of Agriculture",null,"Geospatial Information Officer","stephen.lowe@ocio.usda.gov"]
["Land Use - Land Cover","Jonathan Smith (Co-Lead)","jhsmith@usgs.gov","Department of the Interior","United States Geological Survey (USGS)","Jerry Johnston*","Department of the Interior",null,"Geospatial Information Officer","jerry_johnston@ios.doi.gov "]
[null,"Greg Reams (Co-Lead)","greams@fs.fed.us","Department of Agriculture","United States Forest Service (USFS)","Stephen Lowe*","Department of Agriculture",null,"Geospatial Information Officer","stephen.lowe@ocio.usda.gov"]
["Real Property","Michel Kareis","michel.kareis@gsa.gov","General Services Administration","Office of Government-wide Policy (OGP) ","Angela Smith*","General Services Administration",null,"Acting Director, Office of Information, Integrity and Access; Office of Government-Wide Policy","angela.smith@gsa.gov"]
["Soils ","Dave Hoover","dave.hoover@lin.usda.gov","Department of Agriculture","Natural Resources Conservation Service (NRCS)","Stephen Lowe*","Department of Agriculture",null,"Geospatial Information Officer","stephen.lowe@ocio.usda.gov"]
["Transportation","Raquel Hunt","raquel.hunt@dot.gov","Department of Transportation","Bureau of Transportation Statistics (BTS)","Richard McKinney","Department of Transportation",null,"Chief Information Officer","richard.mckinney@dot.gov"]
["Utilities","Offshore-Warren Williamson (Co-Lead)","warren.williamson@bsee.gov","Department of the Interior","Bureau of Safety and Environmental Enforcement (BSEE)","Jerry Johnston*","Department of the Interior",null,"Geographic Information Officer","jerry_johnston@ios.doi.gov "]
[null,"Terrestrial- TBD (Co-Lead)",null,"TBD","TBD","TBD","TBD","TBD","TBD","TBD"]
["Water - Inland","Bill Wilen (Co-Lead)","bill_wilen@fws.gov","Department of the Interior","United States Fish and Wildlife Service (USFWS)","Jerry Johnston*","Department of the Interior",null,"Geographic Information Officer","jerry_johnston@ios.doi.gov "]
[null,"Al Rea (Co-Lead)","ahrea@usgs.gov","Department of the Interior","United States Geological Survey (USGS)","Jerry Johnston*","Department of the Interior",null,"Geographic Information Officer","jerry_johnston@ios.doi.gov "]
["Water - Oceans and Coasts","Tony LaVoi","tony.lavoi@noaa.gov","Department of Commerce ","National Oceanic and Atmospheric Administration (NOAA)","Margaret Davidson","Department of Commerce ","National Oceanic and Atmospheric Administration (NOAA)","Assistant Administrator, National Ocean Service","margaret.davidson@noaa.gov"]
[null,null,null,22,null,"* Senior Agency Official for Geospatial Information (SAOGI)"]
[]
[]
["Theme","Theme Lead","Theme Lead Contact Info","Theme Lead Agency","Theme Lead Sub-Agency",null,null,"Theme Executive Champion","Executive Champion Agency","Executive Champion Sub-Agency","Executive Champion Title","Theme Executive Champion Contact Info"]

{"sheet":"Theme Totals","index":2,"n_rows":19,"n_cols":7,"rows_kept":19,"cut":false,"hidden":false,"merged":[]}
["Theme","NGDA Total","NGDA Complete","NGDA in Progress","Not started","On Hold","Percent Complete (not including NGDA on hold)"]
["Biota ",7,7,0,0,0,{"$f":"(C2+F2)/B2","v":1}]
["Cadastre",20,13,5,0,2,0.72]
["Climate and Weather",5,5,0,0,0,1]
["Cultural Resources",4,3,0,0,1,{"$f":"(C5+F5)/B5","v":1}]
["Elevation",10,10,0,0,0,{"$f":"(C6+F6)/B6","v":1}]
["Geodetic Control",4,4,0,0,0,1]
["Geology",6,4,1,0,1,0.8]
["Governmental Units, and Administrative and Statistical  Boundaries",41,39,0,0,2,1]
["Imagery",9,3,6,0,0,0.33]
["Land Use - Land Cover",23,8,15,0,0,0.34782608695652173]
["Real Property",15,15,0,0,0,1]
["Soils ",5,0,5,0,0,0]
["Transportation",16,16,0,0,0,1]
["Utilities",2,2,0,0,0,1]
["Water - Inland",5,5,0,0,0,1]
["Water - Oceans and Coasts",16,16,0,0,0,1]
["Total",{"$f":"SUM(B2:B17)","v":188},{"$f":"SUM(C2:C17)","v":150},{"$f":"SUM(D2:D17)","v":32},{"$f":"SUM(E2:E17)","v":0},{"$f":"SUM(F2:F17)","v":6},{"$f":"C18/(B18-F18)","v":0.82417582417582413}]
["Percentages - May 1, 2015",null,{"$f":"C18/B18","v":0.7978723404255319},{"$f":"D18/B18","v":0.1702127659574468},{"$f":"E18/B18","v":0},{"$f":"F18/B18","v":3.1914893617021274E-2},{"$f":"SUM(C19:F19)","v":1}]

{"sheet":"NGDA Datasets","index":3,"n_rows":223,"n_cols":4,"rows_kept":223,"cut":false,"hidden":false,"merged":[[72,0,72,3],[205,0,205,3],[115,0,115,3],[194,0,194,3],[198,0,198,3],[0,0,0,3],[126,0,126,3],[176,0,176,3],[152,0,152,3],[169,0,169,3],[46,0,46,3],[58,0,58,3],[2,0,2,3],[11,0,11,3],[33,0,33,3],[40,0,40,3],[64,0,64,3]]}
["FGDC A-16 NGDA Data Set by Data Theme List - May 1, 2015 (Note: this list continues to be updated, refined, and normalized)"]
["NGDA Dataset Name","Keyword Tags \"NGDA\" and \"Theme Name Theme\" Query Return from catalog.data.gov","NGDA Theme","Agency"]
["Biota"]
["Bailey's Ecoregions and Subregions Dataset","Bailey's Ecoregions And Subregions Of The United States, Puerto Rico, And The U.S. Virgin Islands - Direct Download","Biota","USDA-USFS"]
["Environmental Sensitivity Index (ESI) Data","Environmental Sensitivity Index (ESI) Data Viewer And REST Services For Atlases","Biota","DOC-NOAA"]
["FWS Critical Habitat for Threatened and Endangered Species Dataset","FWS Critical Habitat for Threatened and Endangered Species Dataset","Biota","DOI-FWS"]
["Terrestrial Ecosystems of the Conterminous United States","Terrestrial ecosystems of the conterminous United States","Biota","DOI-USGS"]
["U.S. Geological Survey Gap Analysis Program Species Distribution Models","U.S. Geological Survey Gap Analysis Program Species Distribution Models","Biota","DOI-USGS"]
["U.S. Geological Survey Gap Analysis Program Species Ranges","U.S. Geological Survey Gap Analysis Program Species Ranges","Biota","DOI-USGS"]
["Omernik's Level III Ecoregions Of The Conterminous United States","Omernik's Level III Ecoregions Of The Conterminous United States","Biota","USEPA"]
["Biota Count",null,{"$f":"COUNTA(C4:C10)","v":7}]
["Cadastre"]
["Army Corps of Engineers Lands","On hold at agency request","Cadastre","DOD-USACE"]
["BIA Indian Lands Dataset (Indian Lands of the United States)","BIA Indian Lands Dataset (Indian Lands Of The United States)","Cadastre","DOI-BIA"]
["BLM's Public Land Survey System Dataset (PLSS)",null,"Cadastre","DOI-BLM"]
["Department of Defense Land Parcels and Sites","On hold at agency request","Cadastre","DOD-ATL"]
["BLM National Surface Management Agency: Area Polygons, Withdrawal Area Polygons, and Special Public Purpose Withdrawal Area Polygons","BLM National Surface Management Agency: Area Polygons, Withdrawal Area Polygons, and Special Public Purpose Withdrawal Area Polygons","Cadastre","DOI-BLM"]
["FS National Forests Dataset (US Forest Service Proclaimed Forests)",null,"Cadastre","USDA-USFS"]
["FWSInterest","FWSInterest","Cadastre","DOI-FWS"]
["General Land Office Dataset of Scanned Authoritative Documents Related to Ownership of Federal Parcels of Lands (Bureau of Land Management, General Land Office Records System)",null,"Cadastre","DOI-BLM"]
["NPS National Parks Dataset","Administrative Boundaries of National Park System Units 02/12/2015 - National Geospatial Data Asset (NGDA) NPS National Parks Dataset","Cadastre","DOI-NPS"]
["Outer Continental Shelf Active Renewable Energy Leases",null,"Cadastre","DOI-BOEM"]
["Outer Continental Shelf Block Aliquots",null,"Cadastre","DOI-BOEM"]
["Outer Continental Shelf Lease Blocks -  Alaska Region NAD83","Outer Continental Shelf Lease Blocks - Alaska Region NAD83","Cadastre","DOI-BOEM"]
["Outer Continental Shelf Lease Blocks - Atlantic Region NAD83","Outer Continental Shelf Lease Blocks - Atlantic Region NAD83","Cadastre","DOI-BOEM"]
["Outer Continental Shelf Lease Blocks - Gulf of Mexico Region NAD27","Outer Continental Shelf Lease Blocks - Gulf of Mexico Region NAD27","Cadastre","DOI-BOEM"]
["Outer Continental Shelf Lease Blocks - Pacific Region - West Coast NAD83","Outer Continental Shelf Lease Blocks - Pacific Region - West Coast NAD83","Cadastre","DOI-BOEM"]
["Outer Continental Shelf Official Protraction Diagrams - Alaska Region NAD 83","Outer Continental Shelf Official Protraction Diagrams - Alaska Region NAD 83","Cadastre","DOI-BOEM"]
["Outer Continental Shelf Official Protraction Diagrams - Atlantic Region NAD 83","Outer Continental Shelf Official Protraction Diagrams - Atlantic Region NAD 83","Cadastre","DOI-BOEM"]
["Outer Continental Shelf Official Protraction Diagrams and Lease Maps - Gulf of Mexico Region NAD27","Outer Continental Shelf Official Protraction Diagrams And Lease Maps - Gulf Of Mexico Region NAD27","Cadastre","DOI-BOEM"]
["Outer Continental Shelf Official Protraction Diagrams - Pacific Region - West Coast NAD 83","Outer Continental Shelf Official Protraction Diagrams - Pacific Region - West Coast NAD 83","Cadastre","DOI-BOEM"]
["Protected Areas Database Of The United States (PADUS) - Combined: Version 1.3","Protected Areas Database Of The United States (PADUS) - Combined: Version 1.3","Cadastre","DOI-USGS"]
["Cadastre Count",null,{"$f":"COUNTA(C13:C32)","v":20}]
["Climate and Weather"]
["Geostationary Operational Environmental Satellite (GOES) Imager Data","NOAA Geostationary Operational Environmental Satellite (GOES) Imager Data","Climate and Weather","DOC-NOAA"]
["High-Resolution Sea Surface Temperature (SST) Analysis Products","NOAA High-Resolution Sea Surface Temperature (SST) Analysis Products","Climate and Weather","DOC-NOAA"]
["Next Generation Radar (NEXRAD) Products","NOAA Next Generation Radar (NEXRAD) Products","Climate and Weather","DOC-NOAA"]
["Polar-Orbiting Operational Environmental Satellites (POES) Radiometer Data","NOAA Polar-Orbiting Operational Environmental Satellites (POES) Radiometer Data","Climate and Weather","DOC-NOAA"]
["Parameter- Elevation Regressions on Independent Slopes Model (PRISM) Dataset ","Parameter- Elevation Regressions on Independent Slopes Model (PRISM) Dataset ","Climate and Weather","USDA-NRCS"]
["Climate and Weather Count",null,{"$f":"COUNTA(C35:C39)","v":5}]
["Cultural Resources"]
["Area Landmark State Based","TIGER/Line Shapefile, 2014, Series Information File for the Area Landmark State-based Shapefiles","Cultural Resources","DOC-Census"]
["Geographic Names Information System (GNIS)","USGS Geographic Names (GNIS) Overlay Map Service from The National Map","Cultural Resources","DOI-USGS"]
["National Monuments/Icons Dataset","On hold at agency request","Cultural Resources","DHS-FEMA"]
["National Register of Historic Places","National Register of Historic Places - National Geospatial Data Asset (NGDA) NPS National Register Dataset","Cultural Resources","DOI-NPS"]
["Cultural Resources Count",null,{"$f":"COUNTA(C42:C45)","v":4}]
["Elevation"]
["Digital Elevation Models from NOAA/NGDC","Digital Elevation Models from NOAA/NGDC","Elevation","DOC-NOAA-NGDC"]
["GMTED2010","Global Multi-Resolution Terrain Elevation Data - National Geospatial Data Asset (NGDA)","Elevation","DOI-USGS"]
["LiDAR Point Cloud","USGS Lidar Point Cloud (LPC) Downloadable Data Collection from The National Map 3D Elevation Program (3DEP) - National Geospatial Data Asset (NGDA) Lidar Point Cloud","Elevation","DOI-USGS"]
["MultiBeam Bathymetric Data Base (MBBDB)","MultiBeam Bathymetric Data Base (MBBDB)","Elevation","DOC-NOAA-NGDC"]
["National Elevation Data Set (NED)","USGS Elevation Availability (NED) Overlay Map Service from The National Map - National Geospatial Data Asset (NGDA) National Elevation Data Set (NED)","Elevation","DOI-USGS"]
["National Flood Hazard Layer (NFHL)","National Flood Hazard Layer (NFHL)","Elevation","DHS-FEMA"]
["NGDC Marine Trackline Geophysics Database","NGDC Marine Trackline Geophysics Database","Elevation","DOC-NOAA-NGDC"]
["NOS Hydrographic Surveys","NOS Hydrographic Surveys Collection","Elevation","DOC-NOAA-NGDC"]
[" Shuttle Radar Topography Mission (SRTM)","Shuttle Radar Topography Mission 1 Arc And 3 Arc Second Digital Terrain Elevation Data - National Geospatial Data Asset (NGDA)","Elevation","DOI-USGS"]
["U.S. Coastal Lidar Elevation Data - Including the Great Lakes and Territories, 1996 - present","U.S. Coastal Lidar Elevation Data - Including The Great Lakes And Territories, 1996 - Present","Elevation","DOC-NOAA-NGDC"]
["Elevation Count",null,{"$f":"COUNTA(C48:C57)","v":10}]
["Geodetic Control"]
["Airborne Gravity (GRAV-D)","Airborne Gravity: NGS' Gravity Data for the US and Territories (2008-2022) - National Geospatial Data Asset (NGDA) Airborne Gravity (GRAV-D)","Geodetic Control","DOC-NOAA"]
["Continuously Operating Reference Stations (CORS)","National Geospatial Data Asset (NGDA) Continuously Operating Reference Stations (CORS)","Geodetic Control","DOC-NOAA"]
["Geodetic Control Information on Passive Marks ","Geodetic Control Information on Passive Marks: Horizontal and Vertical Geodetic Control Data for the United States - National Geospatial Data Asset (NGDA) Geodetic Control Information on Passive Marks","Geodetic Control","DOC-NOAA"]
["Geoid Models","Geoid Height and Deflections of the Vertical Models - National Geospatial Data Asset (NGDA) Geoid Models","Geodetic Control","DOC-NOAA"]
["Geodetic Control Count",null,{"$f":"COUNTA(C60:C63)","v":4}]
["Geology"]
["Federal Outer Continental Shelf Sand and Gravel Borrow Areas","On hold at agency request","Geology","DOI-BOEM"]
["Geologic Mapping",null,"Geology","DOI-USGS"]
["Outer Continental Shelf Oil and Natural Gas Wells- Alaska Region NAD 83","Outer Continental Shelf Oil and Natural Gas Wells - Alaska Region NAD 83","Geology","DOI-BOEM"]
["Outer Continental Shelf Oil and Natural Gas Wells- Gulf of Mexico Region NAD27","Outer Continental Shelf Wells - Gulf of Mexico Region NAD 27","Geology","DOI-BOEM"]
["Outer Continental Shelf Oil and Natural Gas Wells - Pacific Region - West Coast NAD 83",{"$f":"HYPERLINK(\"http://www.geoplatform.gov/node/243/0e3c557b-21f8-4263-8bbf-72ccb2ab300b\",\"Outer Continental Shelf Oil and Natural Gas Wells - Pacific OCS Region NAD 83\")","v":"Outer Continental Shelf Oil and Natural Gas Wells - Pacific OCS Region NAD 83"},"Geology","DOI-BOEM"]
["Seismic Water Bottom Anomalies - Gulf of Mexico Region NAD27","Seismic Water Bottom Anomalies - Gulf of Mexico NAD27","Geology","DOI-BOEM"]
["Geology Count",null,{"$f":"COUNTA(C66:C71)","v":6}]
["Governmental Units"]
["114th Congressional District","TIGER/Line Shapefile, 2014, Nation, U.S., 114th Congressional District National Shapefile","Governmental Units","DOC-Census"]
["2010 Census 5-digit ZIP Code Tabulation Area","TIGER/Line Shapefile, 2014, Series Information For The 2010 Census 5-Digit ZIP Code Tabulation Area (ZCTA5) National Shapefile","Governmental Units","DOC-Census"]
["2010 Census Population & Housing Unit Counts","TIGER/Line Shapefile, 2010, Series Information File for the 2010 Census Block State-based Shapefile with Housing and Population Data","Governmental Units","DOC-Census"]
["2010 Census Public Use Microdata Area","TIGER/Line Shapefile, 2014, Series Information File For The 2010 Census Public Use Microdata Area (PUMA) State-Based Shapefile","Governmental Units","DOC-Census"]
["2010 Census Urban Area","TIGER/Line Shapefile, 2014, Series Information For The 2010 Census Urban Area National Shapefile","Governmental Units","DOC-Census"]
["2010 Urban Growth Area","TIGER/Line Shapefile, 2012, Series Information File For The 2010 Census Urban Growth Area (UGA) State-Based","Governmental Units","DOC-Census"]
["2010 Census Voting District","TIGER/Line Shapefile, 2012, Series Information File For The 2010 Census Voting District State-Based (VTD)","Governmental Units","DOC-Census"]
["American Indian/Alaska Native/Native Hawaiian (AIANNH) Homeland Areas","TIGER/Line Shapefile, 2014, Series Information File for the Current American Indian/Alaska Native/Native Hawaiian Areas National (AIANNH) National Shapefile","Governmental Units","DOC-Census"]
["American Indian Tribal Subdivision","TIGER/Line Shapefile, 2014,Series Information For The Current American Indian Tribal Subdivision (AITS) National Shapefile","Governmental Units","DOC-Census"]
["Alaska Native Regional Corporation (ANRC)","TIGER/Line Shapefile, 2014, Series Information For The Current Alaska Native Regional Corporation (ANRC) State-Based Shapefiles","Governmental Units","DOC-Census"]
["BLM Administrative Unit Boundary Polygons","BLM Administrative Unit Boundary Polygons","Governmental Units","DOI-BLM"]
["BLM Administrative Unit Office Points","BLM Administrative Unit Office Points","Governmental Units","DOI-BLM"]
["Census Block","TIGER/Line Shapefile, 2014, Series Information File For The 2010 Census Block State-Based Shapefile","Governmental Units","DOC-Census"]
["Block Group","TIGER/Line Shapefile, 2014, Series Information File For The Current Block Group State-Based Shapefile","Governmental Units","DOC-Census"]
["Census Bureau Regional Office Boundaries","On hold at agency request","Governmental Units","DOC-Census"]
["Census Tract","TIGER/Line Shapefile, 2014, Series Information File for the Current Census Tract State-based Shapefile","Governmental Units","DOC-Census"]
["Combined New England City and Town Area","TIGER/Line Shapefile, 2014, Series Information File For The Current Combined New England City And Town Area (CNECTA) National","Governmental Units","DOC-Census"]
["Combined Statistical Area","TIGER/Line Shapefile, 2014, Series Information File For The Current Combined Statistical Area (CSA) National Shapefile","Governmental Units","DOC-Census"]
["Consolidated City","TIGER/Line Shapefile, 2014, Series Information For The Current Consolidated City State-Based Shapefiles","Governmental Units","DOC-Census"]
["County and Equivalent","TIGER/Line Shapefile, 2014,Series Information For The Current County And Equivalent National Shapefile","Governmental Units","DOC-Census"]
["County Subdivision","TIGER/Line Shapefile, 2014, Series Information File For The Current County Subdivision State-Based Shapefile","Governmental Units","DOC-Census"]
["Elementary School Districts","TIGER/Line Shapefile, 2014, Series Information For The Current Elementary School Districts State-Based Shapefile","Governmental Units","DOC-Census"]
["EPA Facilities and Regional Boundaries","EPA Facility Locations And Regional Boundaries - National Geospatial Data Asset (NGDA)","Governmental Units","USEPA"]
["Estate (US Virgin Islands)","TIGER/Line Shapefile, 2014, Series Information For The Current Estate State-Based Shapefile (U.S. Virgin Islands Only)","Governmental Units","DOC-Census"]
["HUD Entitlement Grantee Jurisdiction","HUD Entitlement Grantee Jurisdiction - National Geospatial Data Asset (NGDA)","Governmental Units","HUD"]
["International Boundary United States Mexico Minute 315","International Boundary United States Mexico Minute 315","Governmental Units","IBWC"]
["Metropolitan Division","TIGER/Line Shapefile, 2014, Series Information For The Current Metropolitan Division National Shapefile","Governmental Units","DOC-Census"]
["Metropolitan Statistical Area/Micropolitan Statistical Area","TIGER/Line Shapefile, 2014, Series Information File For The Current Metropolitan Statistical Area/Micropolitan Statistical Area (CBSA) National Shapefile","Governmental Units","DOC-Census"]
["National Weather Service County Warning Area Boundaries","National Weather Service County Warning Area Boundaries","Governmental Units","DOC-NOAA"]
["NECTA Division","TIGER/Line Shapefile, 2014, Series Information For The Current NECTA Division National Shapefile","Governmental Units","DOC-Census"]
["New England City and Town Area","TIGER/Line Shapefile, 2014, Series Information File For The Current New England City And Town Area (NECTA) National Shapefile","Governmental Units","DOC-Census"]
["Place","TIGER/Line Shapefile, 2014, Series Information File For The 2014 Current Place State-Based Shapefiles","Governmental Units","DOC-Census"]
["Secondary School District","TIGER/Line Shapefile, 2014, Series Information File For The Current Secondary School Districts State-Based Shapefile","Governmental Units","DOC-Census"]
["State and Equivalent","TIGER/Line Shapefile, 2014, Series Information File For The Current State And Equivalent National Shapefile","Governmental Units","DOC-Census"]
["State Legislative District (SLD) Lower Chamber","TIGER/Line Shapefile, 2014, Series Information For The Current State Legislative District (SLD) Lower Chamber State-Based Shapefile","Governmental Units","DOC-Census"]
["State Legislative District (SLD) Upper Chamber","TIGER/Line Shapefile, 2014, Series Information File For The Current State Legislative District (SLD) Upper Chamber State-Based Shapefile","Governmental Units","DOC-Census"]
["Subbarrio (Subminor Civil Division)","TIGER/Line Shapefile, 2014, Series Information File For The Current Subbarrio (Subminor Civil Division) State-Based Shapefile","Governmental Units","DOC-Census"]
["Tribal Block Group","TIGER/Line Shapefile, 2014, Series Information File For The Current Tribal Block Group National Shapefile","Governmental Units","DOC-Census"]
["Tribal Census Tract","TIGER/Line Shapefile, 2014, Series Information For The Current Tribal Census Tract National Shapefile","Governmental Units","DOC-Census"]
["Unified School Districts","TIGER/Line Shapefile, 2014, Series Information For The Current Unified School Districts State-Based Shapefile","Governmental Units","DOC-Census"]
["US Canadian Boundary","On hold at agency request","Governmental Units","IBC"]
["Governmental Units Count",null,{"$f":"COUNTA(C74:C114)","v":41}]
["Imagery"]
["Advanced Spaceborne Thermal Emission and Reflection Radiometer (ASTER)",null,"Imagery","NASA"]
["High Resolution Orthoimagery","USGS High Resolution Orthoimagery Collection - Current - National Geospatial Data Asset (NGDA) High Resolution Orthoimagery","Imagery","DOI-USGS and DOD - NGA"]
["Landsat - Enhanced Thematic Mapper",null,"Imagery","DOI-USGS"]
["Landsat - Multi Spectral Scanner",null,"Imagery","DOI-USGS"]
["Landsat - Thematic Mapper",null,"Imagery","DOI-USGS"]
["Moderate Resolution Imaging Spectroradiometer (MODIS) - Aqua",null,"Imagery","NASA"]
["Moderate Resolution Imaging Spectroradiometer (MODIS) - Terra",null,"Imagery","NASA"]
["NOAA Coastal Mapping Remote Sensing Data","NOAA Coastal Mapping Remote Sensing Data","Imagery","DOC-NOAA"]
["The National Agriculture Imagery Program (NAIP) Imagery","National Geospatial Data Asset (NGDA) NAIP Imagery","Imagery","USDA-FSA"]
["Imagery Count",null,{"$f":"COUNTA(C117:C125)","v":9}]
["Land Use - Land Cover"]
["Coastal Change Analysis Program (C-CAP) High Resolution Land Cover and Change","Coastal Change Analysis Program (C-CAP) High Resolution Land Cover and Change","Land Use - Land Cover","DOC-NOAA"]
["Coastal Change Analysis Program (C-CAP) Regional Land Cover Data and Change","Coastal Change Analysis Program (C-CAP) Regional Land Cover Data and Change Data","Land Use - Land Cover","DOC-NOAA"]
["Cropland Data Layer (CDL) (CropScape)","CropScape - Cropland Data Layer","Land Use - Land Cover","USDA-NASS"]
["Forest Inventory and Analysis (FIA)","US Forest Service Forest Inventory and Analysis Database","Land Use - Land Cover","USDA-USFS"]
["Landfire Biophysical Settings",null,"Land Use - Land Cover","USDA-USFS"]
["Landfire Environmental Site Potential",null,"Land Use - Land Cover","USDA-USFS"]
["Landfire Existing Vegetation Cover",null,"Land Use - Land Cover","USDA-USFS"]
["Landfire Existing Vegetation Height",null,"Land Use - Land Cover","USDA-USFS"]
["Landfire Existing Vegetation Type",null,"Land Use - Land Cover","USDA-USFS"]
["Landfire Fire Events Geodatabase",null,"Land Use - Land Cover","USDA-USFS"]
["Landfire Fire Regime Groups",null,"Land Use - Land Cover","USDA-USFS"]
["Landfire Forest Canopy Base Height",null,"Land Use - Land Cover","USDA-USFS"]
["Landfire Forest Canopy Bulk Density",null,"Land Use - Land Cover","USDA-USFS"]
["Landfire Forest Canopy Cover",null,"Land Use - Land Cover","USDA-USFS"]
["Landfire Forest Canopy Height",null,"Land Use - Land Cover","USDA-USFS"]
["Landfire Wildfire Disturbance",null,"Land Use - Land Cover","USDA-USFS"]
["MTBS Wildfire Burned Area Boundaries",null,"Land Use - Land Cover","USDA-USFS"]
["MTBS Wildfire Burn Severity Mosaics",null,"Land Use - Land Cover","USDA-USFS"]
["MTBS Wildfire Occurrence",null,"Land Use - Land Cover","USDA-USFS"]
["National Land Cover Database (NLCD) Land Cover Collection",{"$f":"HYPERLINK(\"https://www.geoplatform.gov/node/243/ec7f7cc1-fb25-4f69-9804-fe64c411c69a\",\"National Land Cover Database (NLCD) Land Cover Collection\")","v":"National Land Cover Database (NLCD) Land Cover Collection"},"Land Use - Land Cover","DOI-USGS"]
["National Land Cover Database (NLCD) Percent Developed Imperviousness Collection",{"$f":"HYPERLINK(\"https://www.geoplatform.gov/node/243/22eda014-de4b-4b69-8a6b-c9e3e1b4b282\",\"National Land Cover Database (NLCD) Percent Developed Imperviousness Collection\")","v":"National Land Cover Database (NLCD) Percent Developed Imperviousness Collection"},"Land Use - Land Cover","DOI-USGS"]
["National Land Cover Database (NLCD) Percent Imperviousness",{"$f":"HYPERLINK(\"https://www.geoplatform.gov/node/243/22eda014-de4b-4b69-8a6b-c9e3e1b4b282\",\"National Land Cover Database (NLCD) Percent Developed Imperviousness Collection\")","v":"National Land Cover Database (NLCD) Percent Developed Imperviousness Collection"},"Land Use - Land Cover","DOI-USGS"]
["National Land Cover Database (NLCD) Percent Tree Canopy",{"$f":"HYPERLINK(\"https://www.geoplatform.gov/node/243/fe766db4-f213-49d2-a267-9f91638abf3a\",\"National Land Cover Database (NLCD) Percent Tree Canopy Collection\")","v":"National Land Cover Database (NLCD) Percent Tree Canopy Collection"},"Land Use - Land Cover","DOI-USGS"]
["North American Land Change Monitoring System (NALCMS)",{"$f":"HYPERLINK(\"https://www.geoplatform.gov/node/243/423c743e-0b11-4264-a52b-f43dd00908f3\",\"North American Land Change Monitoring System (NALCMS) Collection\")","v":"North American Land Change Monitoring System (NALCMS) Collection"},"Land Use - Land Cover","DOI-USGS"]
["Land Use - Land Cover Count",null,{"$f":"COUNTA(C128:C151)","v":24}]
["Real Property"]
["Assisted Housing (census geography or point-based)","Assisted Housing - Housing Choice Vouchers By Tract - National Geospatial Data Asset (NGDA)","Real Property","HUD"]
["Fair Market Rents (Fair Market Rents For The Section 8 Housing Assistance Payments Program)","Fair Market Rents (Fair Market Rents For The Section 8 Housing Assistance Payments Program) - National Geospatial Data Asset (NGDA)","Real Property","HUD"]
["FHA Insured Multifamily Properties","HUD Insured Multifamily Properties","Real Property","HUD"]
["FHA Insured Single Family Properties","FHA Insured Single Family Properties By Census Tract - National Geospatial Data Asset (NGDA)","Real Property","HUD"]
["HUD Assisted Multifamily Housing (Multifamily Assistance Section 8 Contracts)","Multifamily Assistance Section 8 Contracts","Real Property","HUD"]
["HUD Grantee Activities","Sustainable Communities Regional Planning Grantees","Real Property","HUD"]
["HUD Insured Multifamily Properties (Insured Multifamily Mortgages Database)","Insured Multifamily Mortgages Database","Real Property","HUD"]
["HUD Real Estate Owned Properties","FHA Single Family REO Properties For Sale","Real Property","HUD"]
["Inventory of Owned and Leased Properties Dataset","Inventory Of Owned And Leased Properties","Real Property ","GSA"]
["Low Income Housing Tax Credit Properties","Assisted Housing - Low Income Housing Tax Credit Properties - National Geospatial Data Asset (NGDA)","Real Property","HUD"]
["Military Installations, Ranges, and Training Areas","Military Installations, Ranges, and Training Areas","Real Property ","DOD-ATL"]
["USGS National Structures Dataset","USGS National Structures Dataset (NSD) Downloadable Data Collection - National Geospatial Data Asset (NGDA) USGS National Structures Dataset","Real Property ","DOI-USGS"]
["Public Housing Authorities","Assisted Housing - Public Housing Authorities - National Geospatial Data Asset (NGDA)","Real Property","HUD"]
["Public Housing Buildings","Assisted Housing - Public Housing Buildings - National Geospatial Data Asset (NGDA)","Real Property","HUD"]
["Public Housing Developments","Assisted Housing - Public Housing Developments - National Geospatial Data Asset (NGDA)","Real Property","HUD"]
["Real Property Count",null,{"$f":"COUNTA(C154:C168)","v":15},15]
["Soils"]
["National Coordinated Common Resource Area (CRA) Geographic Database",null,"Soils ","USDA-NRCS"]
["Major Land Resource Area (MLRA)",null,"Soils ","USDA-NRCS"]
["Soil Survey Geographic Database (SSURGO)",null,"Soils ","USDA-NRCS"]
["U.S. General Soil Map (STATSGO2)",null,"Soils ","USDA-NRCS"]
["National Cooperative Soil Characterization Database",null,"Soils ","USDA-NRCS"]
["Soils Count",null,{"$f":"COUNTA(D171:D175)","v":5}]
["Transportation"]
["Airports","Airports (National) - National Geospatial Data Asset (NGDA) Airports","Transportation ","DOT-BTS"]
["Bridges","National Bridge Inventory - National Geospatial Data Asset (NGDA) Bridges","Transportation ","DOT-BTS"]
["Inland Electronic Navigational Charts (IENC)","Inland Electronic Navigational Charts (IENC)","Transportation ","DOD-USACE"]
["Intermodal (Freight)","Freight Intermodal Facility (National) - National Geospatial Data Asset (NGDA) Intermodal (Freight)","Transportation ","DOT-BTS"]
["Intermodal (Passenger)","Passenger Intermodal Facility (IPCD) (National) - National Geospatial Data Asset (NGDA) Intermodal (Passenger) ","Transportation ","DOT-BTS"]
["Locks","Waterway Locks (National) - National Geospatial Data Asset (NGDA) Locks","Transportation ","DOD-USACE"]
["Ports","Ports (National) - National Geospatial Data Asset (NGDA) Ports","Transportation ","DOD-USACE"]
["Rail Lines","Rail Lines (National) - National Geospatial Data Asset (NGDA) Rail Lines","Transportation ","DOT-BTS"]
["Rail Nodes","Rail Nodes (National) - National Geospatial Data Asset (NGDA) Rail Nodes","Transportation ","DOT-BTS"]
["Roads (All Roads)","TIGER/Line Shapefile, 2014, Series Information For The All Roads County-Based Shapefile","Transportation ","DOC-Census"]
["Runways","Runways (National) - National Geospatial Data Asset (NGDA) Runways","Transportation ","DOT-BTS"]
["Transit (Lines)","Fixed-Guideway Transit Lines (National) - National Geospatial Data Asset (NGDA) Transit (Lines) ","Transportation ","DOT-BTS"]
["Transit (Stations)","Fixed-Guideway Transit Stations (National) - National Geospatial Data Asset (NGDA) Transit (Stations) ","Transportation ","DOT-BTS"]
["Traffic Analysis Zone","TIGER/Line Shapefile, 2011, Series Information File for the 2010 Census Traffic Analysis Zone (TAZ) State-based","Transportation ","DOC-Census"]
["Waterway Lines","Navigable Waterway Routes (National) - National Geospatial Data Asset (NGDA) Waterway Lines","Transportation ","DOD-USACE"]
["Waterway Nodes","Navigable Waterway Nodes (National) - National Geospatial Data Asset (NGDA) Waterway Nodes","Transportation ","DOD-USACE"]
["Transportation Count",null,{"$f":"COUNTA(C178:C193)","v":16}]
["Utilities"]
["Outer Continental Shelf Pipelines - Gulf Of Mexico Region NAD 27","Outer Continental Shelf Pipelines - Gulf Of Mexico Region NAD 27","Utilities","DOI-BSEE"]
["Outer Continental Shelf Platforms - Gulf Of Mexico Region NAD 27","Outer Continental Shelf Platforms - Gulf Of Mexico Region NAD 27","Utilities","DOI-BSEE"]
["Utilities Count",null,{"$f":"COUNTA(C196:C197)","v":2}]
["Water - Inland"]
["National Hydrography Dataset (NHD)","USGS National Hydrography Dataset (NHD) Downloadable Data Collection - National Geospatial Data Asset (NGDA) National Hydrography Dataset (NHD)","Water -- Inland","DOI-USGS"]
["National Inventory of Dams (NID)",{"$f":"HYPERLINK(\"http://www.geoplatform.gov/node/243/871c3756-0dfd-4f0e-9de4-47692a66d7ef\",\"National Inventory of Dams\")","v":"National Inventory of Dams"},"Water -- Inland","DOD-USACE"]
["National Levee Database (NLD)",{"$f":"HYPERLINK(\"http://www.geoplatform.gov/node/243/65c0051a-f6e1-40b3-aba9-91330af6b285\",\"National Levee Database, series information for the current inventory of the Nation's levees\")","v":"National Levee Database, series information for the current inventory of the Nation's levees"},"Water -- Inland","DOD-USACE"]
["National Wetlands Inventory (NWI) ","National Wetlands Inventory - Wetlands","Water -- Inland","DOI-FWS"]
["Watershed Boundary Dataset (WBD)  ","USGS National Watershed Boundary Dataset (WBD) Downloadable Data Collection - National Geospatial Data Asset (NGDA) Watershed Boundary Dataset (WBD)","Water -- Inland","DOI-USGS"]
["Water - Inland Count",null,{"$f":"COUNTA(C200:C204)","v":5}]
["Water - Oceans and Coasts"]
["NOAA Coastal Mapping Shoreline Products","NOAA Coastal Mapping Shoreline Products","Water -- Oceans and Coasts ","DOC-NOAA"]
["NOAA Electronic Navigational Charts (ENC) ","NOAA Electronic Navigational Charts (ENC)","Water -- Oceans and Coasts ","DOC-NOAA"]
["Maritime Limits and Boundaries of the United States of America","Maritime Limits And Boundaries Of United States Of America","Water -- Oceans and Coasts ","DOC-NOAA"]
["ODIN: Observational Data Interactive Navigation, an interactive map of all CO-OPS active stations ","ODIN: Observational Data Interactive Navigation, An Interactive Map Of All CO-OPS Active Stations","Water -- Oceans and Coasts ","DOC-NOAA"]
["OCSLA Sec. 8(g) Revenue Zone Boundary - Alaska Region NAD83","OCSLA Sec. 8(G) Revenue Zone Boundary - Alaska Region NAD83","Water -- Oceans and Coasts ","DOI-BOEM"]
["OCSLA Sec. 8(g) Revenue Zone Boundary - Atlantic Region NAD83","OCSLA Sec. 8(G) Revenue Zone Boundary - Atlantic Region NAD83","Water -- Oceans and Coasts ","DOI-BOEM"]
["OCSLA Sec. 8(g) Revenue Zone Boundary - Gulf of Mexico Region NAD27","OCSLA Sec. 8(G) Revenue Zone Boundary - Gulf Of Mexico Region NAD27","Water -- Oceans and Coasts ","DOI-BOEM"]
["OCSLA Sec. 8(g) Revenue Zone Boundary - Pacific Region - West Coast NAD 83","OCSLA Sec. 8(G) Revenue Zone Boundary - Pacific Region - West Coast NAD83","Water -- Oceans and Coasts ","DOI-BOEM"]
["NOAA Raster Navigational Charts (RNC)","NOAA Raster Nautical Charts (RNC)","Water -- Oceans and Coasts ","DOC-NOAA"]
["Sea Levels Online: Sea Level Variations of the United States Derived from National Water Level Observation Network Stations","Sea Levels Online: Sea Level Variations Of The United States Derived From National Water Level Observation Network Stations","Water -- Oceans and Coasts ","DOC-NOAA"]
["Outer Continental Shelf 200 Nautical Mile Limit - Gulf of Mexico Region NAD27","Outer Continental Shelf 200 Nautical Mile Limit - Gulf Of Mexico Region NAD27","Water -- Oceans and Coasts ","DOI-BOEM"]
["Outer Continental Shelf Submerged Lands Act Boundary - Alaska Region NAD83","Outer Continental Shelf Submerged Lands Act Boundary - Alaska Region NAD83","Water -- Oceans and Coasts ","DOI-BOEM"]
["Outer Continental Shelf Submerged Lands Act Boundary - Atlantic Region NAD83","Outer Continental Shelf Submerged Lands Act Boundary - Atlantic Region NAD83","Water -- Oceans and Coasts ","DOI-BOEM"]
["Outer Continental Shelf Submerged Lands Act Boundary - Gulf of Mexico Region NAD27","Outer Continental Shelf Submerged Lands Act Boundary - Gulf Of Mexico Region NAD27","Water -- Oceans and Coasts ","DOI-BOEM"]
["Outer Continental Shelf Submerged Lands Act Boundary - Pacific Region - West Coast NAD 83","Outer Continental Shelf Submerged Lands Act Boundary - Pacific Region - West Coast NAD83","Water -- Oceans and Coasts ","DOI-BOEM"]
["U.S. Marine Protected Areas Boundaries: MPA Inventory","U.S. Marine Protected Areas Boundaries: MPA Inventory","Water -- Oceans and Coasts ","DOC-NOAA"]
["Water -- Oceans and Coasts Count",null,{"$f":"COUNTA(C207:C222)","v":16}]